fUSD/lending_fUSD_20240518
["ID","MTS","AMOUNT","RATE_DAILY","PERIOD"]
[327346110,1716000644097,-2003.50782915,0.000234,2]
[327346112,1716000644107,-554.0,0.00023421,2]
[327346114,1716000644116,-154.43,0.00023435,2]
[327346115,1716000644125,-554.0,0.0002366,2]
[327346117,1716000644134,-556.07201049,0.00023899,2]
[327346119,1716000644144,-900.54135758,0.00023899,2]
[327346122,1716000644154,-554.0,0.00023899,2]
[327346124,1716000644163,-1151.91899345,0.00023899,2]
[327346126,1716000644172,-432.75692337,0.00024,2]
[327346127,1716000644181,-554.0,0.00024138,2]
[327346129,1716000644191,-167.0,0.0002414,2]
[327346132,1716000644200,-554.0,0.00024377,2]
[327346133,1716000644210,-554.0,0.00024616,2]
[327346136,1716000644221,-155.32,0.00024792,2]
[327346137,1716000644230,-167.0,0.00024911,2]
[327346140,1716000644240,-9148.79926231,0.0002499,2]
[327346142,1716000644249,-926.12875824,0.00025,2]
[327346144,1716000644258,-224.1230564,0.00025,2]
[327346145,1716000644267,-155.0,0.00025,2]
[327346147,1716000644277,-321.99463947,0.00025,30]
[327346150,1716000644287,-155.0,0.00025,2]
[327346152,1716000644297,-1618.60360898,0.00025,10]
[327346153,1716000644307,-575.12287039,0.00025,14]
[327346155,1716000644316,-5502.92443637,0.00025267,2]
[327346158,1716000644325,-1934.31499855,0.00025427,2]
[327346160,1716000644335,-209.01866739,0.00025459,2]
[327346179,1716000644509,-167.0,0.00025682,2]
[327346181,1716000644519,-167.0,0.00026454,2]
[327346183,1716000644528,-1742.60595667,0.00027,2]
[327346184,1716000644538,-155.0,0.00027,4]
[327346185,1716000644552,-1031.86664122,0.00027,2]
[327346188,1716000644562,-2290.73347015,0.00027064,2]
[327346189,1716000644571,-155.32,0.00027182,2]
[327346190,1716000644583,-167.0,0.00027225,2]
[327346191,1716000644593,-150.0,0.00027397,2]
[327346192,1716000644602,-2973.71,0.00027397,10]
[327346193,1716000644613,-2478.09,0.00027397,10]
[327346194,1716000644623,-2065.08,0.00027397,10]
[327346195,1716000644633,-1720.9,0.00027397,10]
[327346196,1716000644642,-150.0,0.00028118,2]
[327346198,1716000644652,-2475.4866,0.00028571,2]
[327346199,1716000644661,-2100.0,0.00028678,2]
[327346200,1716000644670,-150.0,0.00028839,2]
[327346201,1716000644680,-208.16552028,0.00028842,2]
[327346202,1716000644689,-4212.57244227,0.00028842,2]
[327346203,1716000644698,-156.59507087,0.000289,2]
[327346204,1716000644707,-160.0,0.00028942,30]
[327346205,1716000644717,-163979.0,0.00028942,4]
[327346206,1716000644726,-32054.0,0.00028942,4]
[327346207,1716000644736,-171.11349026,0.0002899,2]
[327346208,1716000644745,-150.65,0.0002899,2]
[327346209,1716000644754,-150.65,0.0002899,2]
[327346210,1716000644763,-150.65,0.0002899,2]
[327346211,1716000644772,-583401.7406825,0.00029,2]
[327346212,1716000644782,-5000.0,0.00029,2]
[327346213,1716000644791,-1481.05847419,0.00029,2]
[327346214,1716000644801,-500000.0,0.00029,2]
[327346215,1716000644810,-500.0,0.00029,2]
[327346216,1716000644820,-150.0,0.0002956,2]
[327346217,1716000644829,-155.32,0.00029572,2]
[327346218,1716000644838,-5502.92443637,0.00029589,2]
[327346219,1716000644848,-1934.31499855,0.00029802,2]
[327346220,1716000644857,-150.65,0.0002999,2]
[327346221,1716000644867,-34005.62035663,0.0003,4]
[327346222,1716000644876,-8120.9188577,0.0003,2]
[327346223,1716000644886,-1392.12055122,0.0003,60]
[327346224,1716000644895,-39220.10365859,0.0003,30]
[327346225,1716000644905,-27692.12696322,0.0003,4]
[327346226,1716000644914,-150.0,0.00030281,2]
[327346227,1716000644923,-2290.73347015,0.00030755,2]
[327346228,1716000644932,-150.0,0.00031002,2]
[327346229,1716000644941,-74325.7149,0.00031392,2]
[327346230,1716000644950,-1000.0,0.000315,2]
[327346232,1716000644960,-150.0,0.00031723,2]
[327346233,1716000644970,-155.32,0.00031961,2]
[327346234,1716000644979,-155.0,0.00032,4]
[327346235,1716000644988,-476.07984074,0.00032,4]
[327346236,1716000644998,-150.0,0.00032444,2]
[327346237,1716000645008,-150.65,0.0003289,2]
[327346238,1716000645018,-428.14393571,0.00032893,30]
[327346239,1716000645027,-154.43,0.00032898,2]
[327346240,1716000645036,-135622.95858173,0.000329,30]
[327346241,1716000645794,-155.23200077,0.00012397,2]
[327346243,1716000645803,-580.76799923,0.000329,30]
[327346248,1716000646069,-664.35167325,0.000329,30]
[327346249,1716000646081,-471.55999978,0.000329,30]
[327346250,1716000646092,-519.67328745,0.000329,30]
[327346251,1716000646103,-1257.26,0.000329,30]
[327346252,1716000646114,-295.78350521,0.000329,30]
[327346253,1716000646124,-693.38000075,0.000329,30]
[327346254,1716000646135,-29485.04690252,0.000329,30]
[327346255,1716000646146,-6257.56595031,0.000329,30]
[327346256,1716000646156,-16231.02761,0.000329,30]
[327346257,1716000646167,-1801.94717962,0.000329,30]
[327346258,1716000646178,-359.00939672,0.000329,30]
[327346259,1716000646311,-2699.80418807,0.000329,30]
[327346260,1716000646323,-8280.005795,0.000329,30]
[327346298,1716001833627,-410.14975934,0.00012247,2]
[327346299,1716001833637,-407.05190177,0.00012248,2]
[327346300,1716001833650,-139.70694162,0.00012248,2]
[327346301,1716001833660,-803.18604434,0.0001225,2]
[327346302,1716001834024,-485.88175586,0.0001225,2]
[327346308,1716001838176,-525.71408206,0.00012246,2]
[327346311,1716001838187,-8018.90818475,0.0001225,2]
[327346337,1716001839616,-693.76,0.0001225,2]
[327346340,1716001839629,-9607.16655338,0.0001225,2]
[327346342,1716001839638,-1896.18152927,0.00012255,2]
[327346344,1716001839648,-1246.87904403,0.00012292,2]
[327346346,1716001839658,-317.83004084,0.00012295,2]
[327346348,1716001839667,-362.48389235,0.00013,2]
[327346350,1716001839677,-457.62510194,0.00013,2]
[327346352,1716001839686,-155.53,0.00013755,2]
[327346354,1716001839699,-337.3,0.00013973,2]
[327346356,1716001839708,-391.03167349,0.00015,2]
[327346358,1716001839718,-618.72089771,0.00015,2]
[327346360,1716001839727,-1655.0,0.000151,2]
[327346362,1716001839737,-200.0,0.00015457,2]
[327346364,1716001839747,-250.0,0.00015537,2]
[327346366,1716001839757,-200.0,0.00015723,2]
[327346368,1716001839766,-250.0,0.00015739,2]
[327346370,1716001839775,-500.0,0.00015768,2]
[327346372,1716001839785,-2751.0,0.00015909,2]
[327346373,1716001839795,-951.4447,0.00016239,2]
[327346376,1716001839805,-259.9741,0.00016239,2]
[327346377,1716001839814,-16974.5912,0.00016239,2]
[327346379,1716001839824,-10652.4815,0.00016239,2]
[327346381,1716001839834,-927.8283,0.00016239,2]
[327346384,1716001839846,-760.3259,0.00016239,2]
[327346386,1716001839855,-3420.2093,0.00016239,2]
[327346388,1716001839865,-7500.0,0.00016239,2]
[327346390,1716001839874,-173.69851474,0.00016241,2]
[327346392,1716001839884,-1686.78408083,0.00016241,2]
[327346394,1716001839894,-1287.84909976,0.00016241,2]
[327346396,1716001839904,-575.11510874,0.00016339,7]
[327346398,1716001839914,-588515.67192905,0.00016339,2]
[327346400,1716001839927,-3741.94117691,0.00016339,2]
[327346473,1716001840604,-1501.26174078,0.00016339,2]
[327346475,1716001840617,-836.99729672,0.00016339,2]
[327346501,1716001840846,-336.59890797,0.00016339,2]
[327346508,1716001840899,-8418.83035648,0.00016339,2]
[327346510,1716001840912,-8947.21879473,0.00016339,2]
[327346512,1716001840923,-8943.78386462,0.00016339,2]
[327346514,1716001840934,-9077.54866152,0.00016339,2]
[327346517,1716001840948,-8943.84023489,0.00016339,2]
[327346675,1716001844832,-49178.68165045,0.00016339,2]
[327346677,1716001844844,-2267.5,0.00016339,2]
[327346686,1716001845342,-623.25,0.00016339,2]
[327346687,1716001845353,-1220.00000001,0.00016339,2]
[327346688,1716001845364,-826.25901472,0.00016339,2]
[327346689,1716001845376,-1031.53958,0.00016339,2]
[327346690,1716001845387,-434.4604038,0.00016339,2]
[327346696,1716001846358,-7567.08157827,0.00016339,2]
[327346700,1716001846370,-1712.9668,0.00016339,2]
[327346703,1716001846380,-3730.04859743,0.00016339,2]
[327346705,1716001846391,-1303.58494265,0.00016339,2]
[327346718,1716001846821,-382.28943785,0.00016339,2]
[327346719,1716001846832,-272.69910537,0.00016339,2]
[327346720,1716001846845,-530.6,0.00016339,2]
[327346721,1716001846856,-1333.14755087,0.00016339,2]
[327346722,1716001846867,-5694.29950002,0.00016339,2]
[327346723,1716001846879,-322.9200001,0.00016339,2]
[327346724,1716001846891,-497.75,0.00016339,2]
[327346742,1716003032413,-500.0,0.00012031,2]
[327346743,1716003032425,-46.75884339,0.00012031,2]
[327346744,1716003032435,-464.58479058,0.00012032,2]
[327346746,1716003032658,-61.12929148,0.00012032,2]
[327346747,1716003032668,-538.87070852,0.00012032,2]
[327346748,1716003032916,-271.2999999,0.00012032,2]
[327346768,1716003038682,-1111.24411073,0.00012032,2]
[327346769,1716003038694,-515.29338044,0.00012032,2]
[327346770,1716003038706,-1023.5008851,0.00012032,2]
[327346771,1716003038717,-358.48667185,0.00012032,2]
[327346786,1716003038935,-1181.30424346,0.00012032,2]
[327346787,1716003038945,-1246.87904403,0.00012133,2]
[327346788,1716003038955,-317.83004084,0.00012135,2]
[327346789,1716003038965,-7254.26092767,0.00012135,2]
[327346790,1716003038977,-654882.72246613,0.00012135,2]
[327346791,1716003039977,-3791.68408224,0.00012135,2]
[327346794,1716003039989,-9732.31485834,0.00012135,2]
[327346796,1716003040002,-361.675,0.00012135,2]
[327346866,1716003040701,-895.02744572,0.00012135,2]
[327346868,1716003040714,-317.43691383,0.00012135,2]
[327346871,1716003040738,-18437.11301676,0.00012135,2]
[327346874,1716003040750,-250.4005637,0.00012135,2]
[327346902,1716003041045,-3000.92524176,0.00012135,2]
[327346905,1716003041058,-467.7,0.00012135,2]
[327346907,1716003041070,-1886.32148733,0.00012135,2]
[327346909,1716003041082,-414.00689896,0.00012135,2]
[327346911,1716003041094,-439.015,0.00012135,2]
[327347206,1716003044091,-1673.26,0.00012135,2]
[327347209,1716003044103,-5882.4050492,0.00012135,2]
[327347274,1716003044513,-460.07091854,0.00012135,2]
[327347275,1716003044526,-2306.6388282,0.00012135,2]
[327347277,1716003044537,-322.97999998,0.00012135,2]
[327347279,1716003044549,-1040.16476904,0.00012135,2]
[327347281,1716003044561,-661.66608519,0.00012135,2]
[327347282,1716003044574,-2000.0,0.00012135,2]
[327347290,1716003046814,-546.75884339,0.00012134,2]
[327347291,1716003046824,-224.99517633,0.00012134,2]
[327347292,1716003046834,-1289.1734616,0.00012135,2]
[327347293,1716003046846,-484.8997316,0.00012135,2]
[327347294,1716003046857,-8321.24884357,0.00012135,2]
[327347295,1716003046869,-9541.89190664,0.00012135,2]
[327347296,1716003046880,-1037.84181366,0.00012135,2]
[327347297,1716003046892,-528.28074138,0.00012135,2]
[327347298,1716003046904,-1741.4332988,0.00012135,2]
[327347299,1716003046916,-3128.6,0.00012135,2]
[327347300,1716003047129,-13634.65267657,0.00012135,2]
[327347302,1716003052802,155.30921177,0.00010921,2]
[327347303,1716003061162,155.20054553,0.00010921,2]
[327347304,1716003067111,750.94633531,0.00011,2]
[327347305,1716003121231,180.15034048,0.00011,2]
[327347306,1716003126252,155.53,0.0001189,2]
[327347307,1716003131157,409.64950278,0.00011,2]
[327347308,1716003141232,180.15034048,0.00011,2]
[327347309,1716003145155,454.42496398,0.00011,2]
[327347310,1716003153504,200.29,0.00010959,2]
[327347311,1716003159237,180.15034048,0.00011,2]
[327347312,1716003175235,180.15034048,0.00010959,2]
[327347313,1716003195234,180.15034048,0.00010959,2]
[327347314,1716003207183,164.04010702,0.00011933,2]
[327347315,1716003215236,215.15052185,0.00011933,2]
[327347317,1716003607109,751.46485869,0.00011,2]
[327347318,1716003636623,546.75884339,0.00011999,2]
[327347319,1716003640565,1272.41491777,0.00011999,2]
[327347320,1716003643382,1896.18152927,0.00011999,2]
[327347321,1716003667894,5000.0,0.00012,2]
[327347322,1716003672711,344.36762572,0.00011999,2]
[327347323,1716003674064,712.80280056,0.00011999,2]
[327347324,1716003691946,5914.71653396,0.00011999,2]
[327347347,1716004231522,-781.95019923,0.00010034,2]
[327347349,1716004231534,-609.31373865,0.00010034,2]
[327347351,1716004231544,-161.99257668,0.00010034,2]
[327347353,1716004231554,-546.75884339,0.00010035,2]
[327347354,1716004231564,-156.2,0.00010036,2]
[327347356,1716004231573,-656.18469416,0.00010555,2]
[327347357,1716004231584,-827.13712285,0.00010555,2]
[327347358,1716004231595,-702.52313927,0.00010555,2]
[327347359,1716004231605,-194.46754225,0.00010558,2]
[327347360,1716004231620,-2980.40839125,0.00010558,2]
[327347361,1716004231629,-645.42483128,0.00010562,2]
[327347362,1716004231638,-630.52,0.00011061,2]
[327347363,1716004231647,-188.22315855,0.00011088,2]
[327347364,1716004231656,-200652.10576357,0.00011089,2]
[327347365,1716004231668,-418.90217464,0.00011089,2]
[327347366,1716004231679,-6370.88873846,0.00011089,2]
[327347367,1716004231691,-163638.08809036,0.00011089,2]
[327347368,1716004231700,-17501.69785076,0.00011091,2]
[327347369,1716004231711,-15426.40214924,0.00011091,2]
[327347370,1716004231720,-194.78,0.00011143,2]
[327347371,1716004231729,-155.0,0.00011159,2]
[327347372,1716004231742,-2490.60437723,0.00011161,2]
[327347373,1716004231753,-544.0998858,0.00011161,2]
[327347374,1716004231780,-626.71201654,0.00011161,2]
[327347375,1716004231792,-346.48303694,0.00011161,2]
[327347376,1716004231804,-667.36237526,0.00011161,2]
[327347377,1716004231901,-259.86200001,0.00011161,2]
[327347378,1716004231913,-357.4799971,0.00011161,2]
[327347379,1716004231966,-4707.39631112,0.00011161,2]
[327347380,1716004231976,-150.0,0.00011282,2]
[327347381,1716004231985,-1000.0,0.000115,2]
[327347382,1716004231994,-2109.32552822,0.000116,2]
[327347383,1716004232006,-17499.57701011,0.000116,2]
[327347384,1716004232020,-499.99,0.000116,2]
[327347385,1716004232029,-516.77,0.00011624,2]
[327347387,1716004232039,-500.0,0.0001168,2]
[327347389,1716004232048,-632.42,0.00011719,2]
[327347391,1716004232058,-194.78,0.00011724,2]
[327347393,1716004232067,-1601.34270501,0.00011913,2]
[327347395,1716004232077,-1245.59307798,0.00011958,2]
[327347397,1716004232086,-250.0,0.00011977,2]
[327347399,1716004232099,-168.918445,0.00011997,2]
[327347401,1716004232109,-5000.0,0.00012,2]
[327347403,1716004232118,-1000.0,0.00012,2]
[327347405,1716004232127,-1083.38070554,0.00012,2]
[327347407,1716004232137,-423.65480676,0.00012,2]
[327347409,1716004232146,-347.73039229,0.00012,2]
[327347411,1716004232155,-176.44656769,0.00012016,2]
[327347413,1716004232164,-35357.46203519,0.00012032,2]
[327347415,1716004232174,-1958.5,0.00012035,2]
[327347417,1716004232183,-5580.526,0.00012035,2]
[327347419,1716004232192,-28195.32,0.00012055,2]
[327347421,1716004232201,-23900.0,0.00012074,2]
[327347422,1716004232211,-1063.44051398,0.00012131,2]
[327347423,1716004232220,-255.49743644,0.00012132,2]
[327347424,1716004232229,-1746.49339483,0.00012133,2]
[327347425,1716004232238,-4436.12930411,0.00012133,2]
[327347426,1716004232247,-168.11824731,0.00012133,2]
[327347427,1716004232257,-282.43030118,0.00012133,2]
[327347428,1716004232266,-275.22315385,0.00012133,2]
[327347429,1716004232276,-317.0267429,0.00012133,2]
[327347430,1716004232285,-490.43554126,0.00012133,2]
[327347431,1716004232294,-262.98011562,0.00012134,2]
[327347432,1716004232304,-1256.96638,0.00012135,2]
[327347433,1716004232314,-162.94,0.0001219,2]
[327347434,1716004232324,-250.0,0.00012248,2]
[327347435,1716004232334,-1242.77060067,0.00012254,2]
[327347436,1716004232344,-1000.0,0.000125,2]
[327347437,1716004232354,-167.84614096,0.000125,2]
[327347438,1716004232363,-180.0,0.00012502,2]
[327347439,1716004232372,-800.0,0.00012884,2]
[327347440,1716004232382,-967.15749932,0.00012889,2]
[327347441,1716004232391,-2751.46221823,0.00012898,2]
[327347442,1716004232401,-362.48389235,0.00013,2]
[327347443,1716004232410,-457.62510194,0.00013,2]
[327347444,1716004232419,-156.2,0.00013345,2]
[327347445,1716004232429,-1000.0,0.0001357,2]
[327347446,1716004232438,-500.0,0.00013699,2]
[327347447,1716004232447,-200.0,0.00013699,2]
[327347448,1716004232457,-250.0,0.00013699,2]
[327347449,1716004232467,-2751.0,0.00013699,2]
[327347450,1716004232477,-760.3259,0.00013873,2]
[327347451,1716004232487,-262.52,0.00013973,2]
[327347452,1716004232496,-156.62,0.00013973,2]
[327347453,1716004232505,-164.07,0.00013973,2]
[327347454,1716004232515,-169.07,0.00013973,2]
[327347455,1716004232524,-172.56,0.00014296,2]
[327347456,1716004232534,-632.42,0.00014459,2]
[327347457,1716004232544,-800.0,0.00014494,2]
[327347458,1716004232553,-618.72089771,0.00015,2]
[327347459,1716004232564,-257.58397251,0.00015,2]
[327347460,1716004232574,-4215.20892645,0.00015,2]
[327347461,1716004232583,-300.0,0.00015068,2]
[327347462,1716004232593,-9723.0,0.000151,2]
[327347463,1716004232602,-1742.0,0.000151,2]
[327347464,1716004232611,-2751.46221818,0.00015482,2]
[327347465,1716004232620,-800.0,0.00016105,2]
[327347466,1716004232629,-170.42745763,0.00016129,2]
[327347467,1716004232638,-575.11510874,0.00016138,7]
[327347468,1716004232647,-16974.5912,0.00016139,2]
[327347469,1716004232657,-1686.78408083,0.00016232,2]
[327347470,1716004232667,-155.16037974,0.00016337,2]
[327347471,1716004232675,-5281.44976512,0.00016337,2]
[327347472,1716004232685,-321.30428145,0.00016338,2]
[327347473,1716004232695,-37456.48019318,0.00016339,2]
[327347474,1716004232704,-1038.65205609,0.00016339,2]
[327347475,1716004232714,-1043.0920579,0.00016339,2]
[327347476,1716004232724,-22551.27297245,0.00016339,2]
[327347477,1716004232734,-200.0,0.00016339,2]
[327347478,1716004232743,-2000.744652,0.0001634,2]
[327347479,1716004232753,-155.35404466,0.0001634,2]
[327347480,1716004232762,-300.0,0.00016438,2]
[327347481,1716004232772,-967.15749927,0.00016453,2]
[327347482,1716004232782,-167.0,0.00016473,2]
[327347483,1716004232791,-1226.74209097,0.000165,2]
[327347484,1716004232801,-156.2,0.00016654,2]
[327347485,1716004232812,-155.0,0.00017,2]
[327347486,1716004232821,-167.0,0.00017017,2]
[327347487,1716004232830,-1256.96639,0.00017135,2]
[327347488,1716004232840,-632.42,0.00017199,2]
[327347489,1716004232850,-167.0,0.0001756,2]
[327347490,1716004232860,-800.0,0.00017715,2]
[327347491,1716004232870,-172.56,0.0001787,2]
[327347492,1716004232879,-155.0,0.00018,2]
[327347493,1716004232889,-167.0,0.00018104,2]
[327347494,1716004232899,-167.0,0.00018648,2]
[327347495,1716004232911,-1001.80613771,0.00019,5]
[327347496,1716004232924,-22422.3742491,0.00019,5]
[327347497,1716004232936,-671.47880364,0.00019,2]
[327347498,1716004232945,-4895.0,0.00019005,2]
[327347499,1716004232955,-167.0,0.00019192,2]
[327347500,1716004232964,-3879.18657409,0.000192,2]
[327347501,1716004232973,-1777.67709494,0.000192,2]
[327347506,1716004237523,-388.05,0.00013973,2]
[327347507,1716004237533,-4895.0,0.00019005,2]
[327347508,1716004237542,-1345.25439943,0.000192,2]
[327347509,1716004237554,-756.25507972,0.000192,2]
[327347510,1716004237565,-800.0,0.00019326,2]
[327347511,1716004237574,-472.11273273,0.000195,2]
[327347512,1716004237583,-1686.78408081,0.00019655,2]
[327347513,1716004237592,-156.2,0.00019963,2]
[327347514,1716004237602,-2751.46221818,0.00019972,2]
[327347515,1716004237611,-6236.08966478,0.0002,2]
[327347516,1716004237621,-155.0,0.0002,2]
[327347517,1716004237631,-861.79098037,0.0002,2]
[327347518,1716004237640,-1772.44606718,0.0002,2]
[327347519,1716004237649,-5182.97271811,0.0002,2]
[327347520,1716004237659,-155.0,0.0002,2]
[327347521,1716004237668,-627.57712,0.0002,2]
[327347522,1716004237678,-1262.30364489,0.0002,2]
[327347523,1716004237688,-262.52,0.00020447,2]
[327347524,1716004237697,-388.05,0.00020447,2]
[327347525,1716004237707,-967.15749927,0.00020884,2]
[327347526,1716004237717,-717.49719888,0.00021,2]
[327347527,1716004237726,-172.56,0.00021444,2]
[327347528,1716004237736,-6767.13708574,0.000219,2]
[327347529,1716004237745,-174.0,0.00021918,2]
[327347530,1716004237755,-630.94,0.00021918,2]
[327347531,1716004237764,-2000.0,0.00021918,2]
[327347532,1716004237774,-5520.28770876,0.00022,2]
[327347533,1716004237783,-1256.96639,0.00022135,2]
[327347534,1716004237793,-353.0,0.00022605,2]
[327347535,1716004237803,-353.0,0.00022839,2]
[327347536,1716004237812,-190.044009,0.00022917,2]
[327347537,1716004237822,-198.363906,0.00022917,2]
[327347538,1716004237832,-194.884322,0.00022917,2]
[327347539,1716004237841,-198.693338,0.00022917,2]
[327347540,1716004237851,-170.669241,0.00022917,2]
[327347541,1716004237860,-158.73283763,0.00023,2]
[327347542,1716004237870,-353.0,0.00023072,2]
[327347543,1716004237880,-1686.78408081,0.00023077,2]
[327347544,1716004237890,-156.2,0.00023271,2]
[327347545,1716004237899,-512.1339854,0.00023305,2]
[327347546,1716004237909,-829.32070659,0.00023305,2]
[327347547,1716004237918,-353.0,0.00023305,2]
[327347548,1716004237927,-1060.89131789,0.00023305,2]
[327347549,1716004237937,-429.624,0.00023368,2]
[327347550,1716004237946,-162.214,0.00023368,2]
[327347551,1716004237957,-2003.50782915,0.000234,2]
[327347552,1716004237966,-198.693338,0.0002349,2]
[327347553,1716004237976,-353.0,0.00023538,2]
[327347555,1716004237986,-353.0,0.00023771,2]
[327347557,1716004237996,-432.75692337,0.00024,2]
[327347558,1716004238005,-353.0,0.00024004,2]
[327347559,1716004238017,-198.363906,0.00024063,2]
[327347560,1716004238028,-198.693338,0.00024063,2]
[327347561,1716004238038,-156.62,0.00024224,2]
[327347562,1716004238048,-2751.46221818,0.00024463,2]
[327347563,1716004238059,-175.87334807,0.000245,2]
[327347564,1716004238068,-517.0,0.00024658,2]
[327347565,1716004238078,-9148.79926231,0.0002499,2]
[327347566,1716004238087,-155.0,0.00025,2]
[327347567,1716004238099,-1130.88179871,0.00025,10]
[327347568,1716004238108,-461.36371785,0.00025,30]
[327347569,1716004238118,-575.12287039,0.00025,14]
[327347570,1716004238128,-155.0,0.00025,2]
[327347571,1716004238138,-926.12875824,0.00025,2]
[327347572,1716004238147,-224.1230564,0.00025,2]
[327347573,1716004238157,-967.15749927,0.00025315,2]
[327347574,1716004238168,-1686.78408081,0.000265,2]
[327347575,1716004238177,-156.2,0.0002658,2]
[327347576,1716004238187,-160.9206787,0.000269,2]
[327347577,1716004238197,-160.92067864,0.000269,2]
[327347578,1716004238206,-160.92067864,0.000269,2]
[327347579,1716004238215,-160.92067864,0.000269,2]
[327347580,1716004238224,-160.92067864,0.000269,2]
[327347581,1716004238234,-160.92067864,0.000269,2]
[327347582,1716004238243,-262.52,0.00026921,2]
[327347583,1716004238252,-388.05,0.00026921,2]
[327347584,1716004238261,-175.5577528,0.00027,4]
[327347585,1716004238271,-1742.60595667,0.00027,2]
[327347586,1716004238280,-22283.60350776,0.00027,7]
[327347588,1716004238289,-324.84939906,0.00027,120]
[327347590,1716004238299,-170.54909272,0.00027,2]
[327347592,1716004238308,-1256.96638,0.00027135,2]
[327347594,1716004238320,-150.0,0.00027397,2]
[327347596,1716004238330,-2169.61,0.00027397,10]
[327347613,1716004238466,-2000.0,0.000274,2]
[327347615,1716004238480,-150.0,0.00028118,2]
[327347617,1716004238490,-160.92067864,0.00028346,2]
[327347619,1716004238499,-221.71,0.000286,2]
[327347621,1716004238510,-221.71,0.000286,2]
[327347623,1716004238519,-150.0,0.00028839,2]
[327347625,1716004238529,-150.0,0.00028898,30]
[327347627,1716004238538,-255.16585248,0.00028898,120]
[327347629,1716004238547,-6537.41328748,0.000289,2]
[327347646,1716004238690,-7053.01445645,0.000289,2]
[327347648,1716004238699,-214.0,0.000289,2]
[327347650,1716004238708,-2751.46221818,0.00028953,2]
[327347652,1716004238718,-2100.0,0.00028981,2]
[327347654,1716004238727,-717.07478716,0.00028999,15]
[327347656,1716004238737,-5000.0,0.00029,2]
[327347658,1716004238746,-1481.05847419,0.00029,2]
[327347660,1716004238755,-3949.03598461,0.00029,2]
[327347662,1716004238767,-776.05005889,0.00029,2]
[327347665,1716004238778,-835.11710452,0.00029,2]
[327347667,1716004238789,-439.45564214,0.00029,2]
[327347670,1716004238803,-351.13088306,0.00029,2]
[327347672,1716004238816,-27561.82820925,0.00029,2]
[327347674,1716004238827,-946.67592046,0.00029,2]
[327347676,1716004238838,-465140.70619707,0.00029,2]
[327347678,1716004238847,-151.0,0.00029081,2]
[327347680,1716004238856,-179.81882923,0.00029086,2]
[327347682,1716004238865,-169.40660434,0.0002936,2]
[327347684,1716004238874,-159.22325879,0.0002946,2]
[327347686,1716004238884,-150.0,0.0002956,2]
[327347688,1716004238893,-302.0,0.0002957,4]
[327347690,1716004238902,-967.15749927,0.00029746,2]
[327347692,1716004238912,-156.2,0.00029889,2]
[327347694,1716004238921,-1686.78408081,0.00029922,2]
[327347696,1716004238930,-5684.64320039,0.0003,2]
[327347698,1716004238940,-8955.86258276,0.0003,30]
[327347700,1716004238950,-23803.93424964,0.0003,4]
[327347702,1716004238959,-344.620046,0.0003,60]
[327347704,1716004238968,-19384.48887425,0.0003,4]
[327347706,1716004238977,-302.647,0.0003,14]
[327347707,1716004238986,-483.13349757,0.0003,2]
[327347708,1716004238995,-310.0,0.0003,3]
[327347709,1716004239004,-7008.45629382,0.0003,4]
[327347710,1716004239014,-604.0,0.00030067,7]
[327347711,1716004239023,-150.0,0.00030281,2]
[327347712,1716004239036,-314.051812,0.00030748,24]
[327347713,1716004239045,-1208.0,0.00030828,30]
[327347714,1716004239054,-150.0,0.00031002,2]
[327347715,1716004239064,-314.051812,0.00031148,26]
[327347716,1716004239075,-160.92067864,0.00031238,2]
[327347717,1716004239085,-155.0,0.00031255,60]
[327347718,1716004239094,-314.051812,0.00031448,28]
[327347719,1716004239104,-150.0,0.00031723,2]
[327347720,1716004239114,-314.051812,0.00031748,30]